bitfinex-derivatives/quotes_SOLF0:USTF0_20250924
["timestamp","ask_amount","ask_price","bid_price","bid_amount"]
[1758733712292,7.73,213.95,213.88,11.5758]
[1758733712486,7.73,213.95,213.91,7.37]
[1758733712686,7.73,213.95,213.9,4.2054]
[1758733712886,2.15367719,213.96,213.91,7.37]
[1758733713082,7.39,213.95,213.91,7.37]
[1758733713691,2.15367719,213.98,213.91,7.37]
[1758733713993,3.31952803,213.97,213.91,7.37]
[1758733714295,2.15367719,213.98,213.91,7.37]
[1758733714494,3.3186042,213.97,213.91,7.37]
[1758733714691,2.15367719,213.98,213.91,7.37]
[1758733714994,3.3186042,213.97,213.91,7.37]
[1758733715195,2.15367719,213.98,213.91,7.37]
[1758733715395,3.31784285,213.97,213.91,7.37]
[1758733715584,2.15367719,213.98,213.91,7.37]
[1758733715785,2.15367719,213.98,213.91,11.5751]
[1758733715991,2.15367719,214.01,213.93,2.15367719]
[1758733716295,9.54367719,214.01,213.94,7.37]
[1758733716489,7.39,214.01,213.94,7.37]
[1758733717295,7.39,214.01,213.96,4.2041]
[1758733717495,7.39,214.01,213.97,7.37]
[1758733718892,2.15367719,214.03,213.97,7.37]
[1758733719091,7.39,214.01,213.97,7.37]
[1758733719293,7.39,214.02,213.97,7.37]
[1758733719493,7.39,214.0,213.97,7.37]
[1758733722894,2.15367719,214.01,213.94,4.2046]
[1758733723093,7.39,214.0,213.94,4.2046]
[1758733725902,7.39,214.0,213.95,4.2043]
[1758733726303,7.39,214.0,213.96,7.37]
[1758733728408,7.39,214.0,213.95,4.2043]
[1758733728704,7.39,214.0,213.96,7.37]
[1758733732807,7.39,213.98,213.91,7.37]
[1758733733407,2.15367719,213.97,213.91,7.37]
[1758733734105,7.39,213.98,213.92,4.2049]
[1758733735109,124.26367719,213.99,213.93,4.2048]
[1758733735306,7.95,213.97,213.93,4.2048]
[1758733735604,116.31367719,213.99,213.93,12.0048]
[1758733735907,3.30051411,213.98,213.93,12.0048]
[1758733736106,7.95,213.97,213.94,7.8]
[1758733736907,7.95,213.97,213.93,4.2048]
[1758733737108,124.26367719,214.02,213.95,7.8]
[1758733737306,3.30112092,214.01,213.95,7.8]
[1758733737507,7.95,213.99,213.95,7.8]
[1758733737706,7.95,213.99,213.93,2.15367719]
[1758733738210,7.95,213.99,213.89,65.4204]
[1758733738511,7.95,213.99,213.94,7.8]
[1758733738708,7.95,213.99,213.93,2.15367719]
[1758733739009,7.95,213.99,213.93,9.95367719]
[1758733739915,7.95,213.99,213.95,4.2043]
[1758733740215,7.82,213.98,213.95,11.4643]
[1758733740724,7.82,214.06,213.99,4.2036]
[1758733741016,3.30611784,214.05,213.99,4.2036]
[1758733741211,3.30611784,214.04,213.99,2.15367719]
[1758733741416,7.82,214.06,214.0,7.26]
[1758733741604,3.30736714,214.05,213.99,2.15367719]
[1758733741808,3.30736714,214.04,214.0,7.26]
[1758733742017,7.82,214.07,214.01,4.2031]
[1758733742206,7.82,214.05,213.97,9.41367719]
[1758733742409,3.30750848,214.04,213.97,9.41367719]
[1758733743212,3.30750848,214.04,213.99,4.2037]
[1758733743513,7.82,214.03,213.99,11.4637]
[1758733743715,3.30750848,214.02,213.99,7.26]
[1758733744812,3.30750848,214.02,213.98,7.26]
[1758733745319,3.30750848,214.02,213.97,2.15367719]
[1758733745518,3.30750848,214.02,213.98,7.26]
[1758733745708,3.30750848,214.02,213.98,11.4637]
[1758733745914,3.30750848,214.02,213.99,7.26]
[1758733746720,3.30750848,214.02,213.98,4.2037]
[1758733746910,3.30750848,214.02,213.99,7.26]
[1758733747116,3.30750848,214.02,213.98,4.2037]
[1758733747315,3.30750848,214.02,213.99,7.26]
[1758733747516,3.30750848,214.02,213.98,4.2037]
[1758733748016,3.30750848,214.02,213.99,4.2035]
[1758733748216,3.30750848,214.02,214.0,7.26]
[1758733748714,3.30750848,214.02,214.0,4.2034]
[1758733748919,124.11367719,214.08,214.01,7.26]
[1758733749120,3.31545468,214.07,214.01,7.26]
[1758733749321,7.82,214.05,214.01,7.26]
[1758733749521,3.31545468,214.04,214.01,7.26]
[1758733749817,3.31545468,214.03,214.01,7.26]
[1758733750021,3.31545468,214.02,214.01,7.26]
[1758733750320,3.31545468,214.02,214.01,11.4632]
[1758733751017,3.31545468,214.02,214.01,7.26]
[1758733754124,7.82,214.05,214.01,7.26]
[1758733754323,11.09548818,214.04,214.01,7.26]
[1758733754524,3.27548818,214.03,214.01,7.26]
[1758733756824,3.27548818,214.03,214.02,7.26]
[1758733758030,3.27548818,214.03,214.01,4.2032]
[1758733758222,3.27548818,214.03,214.01,11.4632]
[1758733759125,3.27548818,214.03,214.01,4.2032]
[1758733759330,3.27548818,214.03,214.02,7.26]
[1758733763326,11.09548818,214.03,214.01,4.2032]
[1758733763630,7.82,214.05,213.99,7.26]
[1758733763829,3.27810971,214.04,213.99,7.86]
[1758733764022,7.32,214.1,214.03,7.86]
[1758733764225,3.27755881,214.09,214.03,7.86]
[1758733764426,3.27755881,214.08,214.03,7.86]
[1758733764625,3.27755881,214.07,214.03,7.86]
[1758733764932,3.27755881,214.06,214.05,7.86]
[1758733765134,7.32,214.1,214.03,7.86]
[1758733765435,3.27630983,214.09,214.03,7.86]
[1758733765634,3.27630983,214.08,214.03,7.86]
[1758733765829,3.27630983,214.07,214.02,2.15367719]
[1758733766029,7.32,214.1,214.03,7.86]
[1758733766229,3.27630983,214.09,214.03,7.86]
[1758733766430,3.27630983,214.08,214.02,2.15367719]
[1758733766629,3.27630983,214.07,214.02,7.86]
[1758733766831,7.32,214.1,214.06,4.2023]
[1758733767136,3.27579447,214.09,214.04,7.86]
[1758733767333,7.32,214.12,214.04,7.86]
[1758733767632,3.27435258,214.11,214.09,4.2015]
[1758733767837,3.27435258,214.1,214.09,4.2015]
[1758733769037,5.258e-05,214.1,214.09,12.0615]
[1758733769236,7.32,214.16,214.13,7.86]
[1758733769742,32.44,214.19,214.09,7.86]
[1758733770335,32.44,214.19,214.13,4.2008]
[1758733771837,121.38,214.19,214.13,4.2008]
[1758733772443,3.36024845,214.17,214.13,4.2008]
[1758733773143,7.32,214.16,214.13,4.2008]
[1758733773339,3.36024845,214.17,214.13,4.2008]
[1758733773643,7.32,214.16,214.13,4.2008]
[1758733774037,3.36024845,214.17,214.13,4.2008]
[1758733775038,7.32,214.16,214.13,4.2008]
[1758733775940,3.36024845,214.14,214.09,7.86]
[1758733776139,7.32,214.13,214.07,0.7367438]
[1758733776936,7.32,214.13,214.1,4.2014]
[1758733777136,7.32,214.13,214.1,12.0614]
[1758733778947,7.32,214.14,214.1,7.86]
[1758733779340,3.36024845,214.15,214.1,7.86]
[1758733779937,7.32,214.14,214.1,7.86]
[1758733780436,3.36024845,214.15,214.1,7.86]
[1758733780839,7.32,214.14,214.1,7.86]
[1758733781649,3.36024845,214.15,214.1,7.86]
[1758733781849,7.32,214.14,214.1,7.86]
[1758733782052,3.36024845,214.15,214.1,7.86]
[1758733782350,7.32,214.14,214.1,12.0614]
[1758733783151,7.32,214.14,214.07,66.1027438]
[1758733783350,7.32,214.17,214.08,7.86]
[1758733783547,10.68024845,214.17,214.08,7.86]
[1758733784353,7.32,214.16,214.13,7.86]
[1758733785252,7.32,214.16,214.13,12.0608]
[1758733786160,3.36024845,214.19,214.13,7.86]
[1758733787453,3.36024845,214.19,214.15,4.2004]
[1758733789052,7.32,214.18,214.15,12.0604]
[1758733789255,3.36024845,214.19,214.15,12.0604]
[1758733789555,7.32,214.18,214.15,12.0604]
[1758733790649,7.32,214.18,214.16,7.86]
[1758733791045,3.36024845,214.19,214.15,4.2004]
[1758733791544,3.36024845,214.19,214.12,7.86]
[1758733791751,3.36024845,214.15,214.08,7.86]
[1758733793349,3.36024845,214.15,214.13,4.2008]
[1758733793660,3.36024845,214.15,214.13,12.0608]
[1758733795869,10.83024845,214.15,214.13,4.2008]
[1758733796166,10.83024845,214.15,214.11,11.5913]
[1758733796864,10.83024845,214.15,214.11,4.2013]
[1758733797264,10.83024845,214.15,214.11,11.5913]
[1758733797563,10.83024845,214.15,214.12,7.39]
[1758733798069,10.83024845,214.15,214.12,11.591]
[1758733798865,3.36024845,214.15,214.12,4.201]
[1758733799268,7.47,214.14,214.12,4.201]
[1758733799472,113.98,214.19,214.13,4.2008]
[1758733799668,3.36024845,214.16,214.13,4.2008]
[1758733799868,7.88,214.15,214.13,4.2008]
[1758733800173,7.88,214.15,214.12,7.39]
[1758733800363,7.88,214.15,214.07,66.1027438]
[1758733800564,11.24024845,214.2,214.15,4.2005]
[1758733800774,7.88,214.19,214.12,7.36]
[1758733801970,7.88,214.19,214.15,4.2004]
[1758733802872,7.88,214.19,214.16,11.5602]
[1758733803072,117.34024845,214.2,214.13,7.36]
[1758733803073,3.36024845,214.2,214.13,7.36]
[1758733803572,3.36024845,214.2,214.17,11.56]
[1758733803874,7.88,214.19,214.17,11.56]
[1758733805470,3.36024845,214.2,214.17,11.56]
[1758733805674,11.24024845,214.2,214.17,11.56]
[1758733806573,11.24024845,214.2,214.18,4.1998]
[1758733806774,121.84,214.22,214.15,7.36]
[1758733807369,348.04,214.25,214.17,7.36]
[1758733807568,7.88,214.25,214.17,7.36]
[1758733807773,5.22639875,214.27,214.18,65.3325]
[1758733807975,125.20024845,214.28,214.19,7.36]
[1758733808175,11.24024845,214.28,214.19,7.36]
[1758733808482,11.24024845,214.28,214.25,7.36]
[1758733808675,11.24024845,214.28,214.24,4.1986]
[1758733808676,11.24024845,214.28,214.24,11.5586]
[1758733809181,5.22639875,214.3,214.26,11.5582]
[1758733809182,7.88,214.3,214.26,11.5582]
[1758733809676,1.5,214.28,214.26,11.5582]
[1758733809877,1.5,214.28,214.26,7.36]
[1758733810678,1.5,214.28,214.2,65.3262]
[1758733810679,1.5,214.28,214.21,7.36]
[1758733811381,1.5,214.28,214.25,4.1984]
[1758733811580,1.5,214.28,214.26,7.36]
[1758733812384,1.5,214.28,214.27,7.36]
[1758733816182,7.88,214.39,214.31,7.36]
[1758733816383,3.36024845,214.37,214.31,7.36]
[1758733816574,7.88,214.36,214.31,7.36]
[1758733816776,7.88,214.36,214.28,7.36]
[1758733816980,3.36024845,214.34,214.28,7.36]
[1758733817287,7.88,214.34,214.25,7.36]
[1758733817580,11.24024845,214.34,214.25,7.36]
[1758733817776,11.24024845,214.34,214.26,4.1984]
[1758733818273,11.24024845,214.34,214.27,4.198]
[1758733818477,11.24024845,214.34,214.28,7.36]
[1758733818882,3.36024845,214.41,214.3,7.36]
[1758733819087,3.36024845,214.42,214.33,7.36]
[1758733819286,7.88,214.43,214.33,7.36]
[1758733820291,7.88,214.43,214.36,11.5564]
[1758733820587,113.9,214.44,214.36,7.36]
[1758733820784,117.26024845,214.46,214.4,7.36]
[1758733820981,113.9,214.46,214.4,7.36]
[1758733821387,347.76,214.47,214.41,4.1954]
[1758733821578,7.88,214.47,214.41,4.1954]
[1758733822782,7.88,214.47,214.4,7.36]
[1758733823686,7.88,214.47,214.4,11.5555]
[1758733824090,7.88,214.47,214.42,4.1952]
[1758733824389,7.96,214.49,214.42,7.54]
[1758733825189,7.96,214.49,214.42,11.7351]
[1758733826490,7.96,214.49,214.43,4.1949]
[1758733827491,7.96,214.49,214.42,7.54]
[1758733828593,2.14346375,214.47,214.41,4.1954]
[1758733829096,2.14346375,214.48,214.39,7.54]
[1758733829692,2.14346375,214.48,214.41,4.1954]
[1758733829996,2.14346375,214.48,214.41,11.7354]
[1758733831196,7.96,214.49,214.41,11.7354]
[1758733831391,7.96,214.49,214.43,7.54]
[1758733831597,2.14346375,214.48,214.42,4.1951]
[1758733831792,10.10346375,214.48,214.42,4.1951]
[1758733832094,10.10346375,214.48,214.42,11.7351]
[1758733832499,2.14346375,214.48,214.44,7.54]
[1758733832793,2.14346375,214.48,214.43,4.1949]
[1758733832994,2.14346375,214.48,214.44,7.54]
[1758733833195,113.82,214.52,214.44,4.1947]
[1758733833496,2.14346375,214.49,214.45,7.54]
[1758733833689,2.14346375,214.49,214.44,4.1947]
[1758733834194,2.14346375,214.49,214.45,4.1945]
[1758733834394,2.14346375,214.49,214.46,7.54]
[1758733834895,2.14346375,214.49,214.47,7.54]
[1758733835394,10.10346375,214.51,214.47,4.1942]
[1758733835591,10.10346375,214.51,214.47,11.7342]
[1758733836589,7.96,214.5,214.47,11.7342]
[1758733837598,7.96,214.5,214.47,7.54]
[1758733837896,118.013,214.54,214.42,7.54]
[1758733838100,10.10346375,214.48,214.42,7.54]
[1758733838993,7.96,214.47,214.43,11.735]
[1758733839898,2.14346375,214.45,214.4,4.1955]
[1758733840097,2.14346375,214.42,214.4,4.1955]
[1758733840300,2.14346375,214.45,214.43,4.195]
[1758733840499,2.14346375,214.45,214.44,7.54]
[1758733840801,2.14346375,214.47,214.44,7.54]
[1758733841394,10.10346375,214.47,214.44,7.54]
[1758733842292,10.10346375,214.47,214.44,11.7347]
[1758733843102,10.10346375,214.47,214.45,4.1945]
[1758733843302,2.14346375,214.47,214.45,11.7345]
[1758733843805,2.14346375,214.47,214.45,7.54]
[1758733844103,0.81178488,214.54,214.38,65.2717]
[1758733844104,2.14346375,214.49,214.42,65.26]
[1758733844298,0.81178488,214.54,214.44,7.54]
[1758733844299,2.14346375,214.51,214.44,7.54]
[1758733844704,2.14346375,214.52,214.44,7.54]
[1758733845408,10.10346375,214.52,214.44,7.54]
[1758733845604,10.10346375,214.52,214.45,4.1946]
[1758733846203,7.96,214.48,214.39,7.54]
[1758733846699,12.1542,214.48,214.39,11.7357]
[1758733846898,12.1542,214.48,214.39,7.54]
[1758733847104,2.14346375,214.46,214.39,7.54]
[1758733847602,2.14346375,214.46,214.41,4.1953]
[1758733847808,2.14346375,214.46,214.38,7.54]
[1758733848507,2.14346375,214.46,214.43,4.1949]
[1758733848811,2.14346375,214.49,214.44,7.54]
[1758733849001,10.10346375,214.49,214.43,4.1949]
[1758733849202,10.10346375,214.49,214.43,11.7349]
[1758733849404,14.29756375,214.49,214.4,7.54]
[1758733849710,10.10346375,214.49,214.4,7.54]
[1758733850107,10.10346375,214.49,214.43,4.195]
[1758733850304,10.10346375,214.49,214.43,11.735]
[1758733851205,10.10346375,214.49,214.44,4.1947]
[1758733851407,2.14346375,214.49,214.44,4.1947]
[1758733851703,7.96,214.48,214.44,4.1947]
[1758733851908,2.14346375,214.49,214.44,4.1947]
[1758733852097,7.96,214.48,214.44,4.1947]
[1758733852303,7.96,214.48,214.42,4.1952]
[1758733852504,10.10346375,214.46,214.42,11.7352]
[1758733853308,7.96,214.45,214.42,7.54]
[1758733854004,7.18,214.45,214.39,4.1958]
[1758733854212,7.18,214.45,214.38,7.29]
[1758733854510,2.14346375,214.43,214.38,11.486]
[1758733854804,7.18,214.42,214.38,11.486]
[1758733855406,7.18,214.42,214.39,4.1957]
[1758733855604,2.14346375,214.43,214.4,7.29]
[1758733855906,2.14346375,214.47,214.43,4.1949]
[1758733856098,2.14346375,214.47,214.38,65.2721]
[1758733856099,2.14346375,214.47,214.44,7.29]
[1758733856298,9.32346375,214.47,214.44,7.29]
[1758733857208,9.32346375,214.47,214.44,11.4847]
[1758733857610,9.32346375,214.47,214.44,4.1947]
[1758733858010,7.18,214.47,214.44,4.1947]
[1758733858208,7.18,214.47,214.44,11.4847]
[1758733858405,9.32346375,214.47,214.44,11.4847]
[1758733858710,7.18,214.46,214.42,11.4852]
[1758733859703,9.32346375,214.46,214.43,4.1949]
[1758733860108,9.32346375,214.46,214.43,11.6749]
[1758733860412,2.14346375,214.46,214.44,11.6747]
[1758733860616,2.14346375,214.49,214.4,72.7448]
[1758733860806,2.14346375,214.49,214.41,7.48]
[1758733861410,2.14346375,214.49,214.43,7.48]
[1758733861617,31.84346375,214.52,214.43,7.48]
[1758733861806,31.84346375,214.52,214.48,4.194]
[1758733862109,39.58346375,214.52,214.43,65.2553]
[1758733862314,9.88346375,214.52,214.44,7.48]
[1758733862709,32.72,214.57,214.51,7.48]
[1758733862908,2.14346375,214.54,214.51,7.48]
[1758733863208,2.14346375,214.54,214.51,11.6734]
[1758733863809,2.14346375,214.54,214.49,11.6738]
[1758733864114,2.14346375,214.51,214.41,7.48]
[1758733864410,2.14346375,214.51,214.47,4.1943]
[1758733864609,9.88346375,214.51,214.43,7.48]
[1758733864909,2.14346375,214.5,214.42,65.2589]
[1758733865113,2.14346375,214.5,214.43,7.48]
[1758733866212,2.14346375,214.53,214.49,7.48]
[1758733866611,2.14346375,214.53,214.46,7.48]
[1758733866810,2.14346375,214.53,214.49,4.1938]
[1758733867014,2.14346375,214.53,214.5,7.48]
[1758733867517,2.14346375,214.53,214.51,7.48]
[1758733867717,2.14346375,214.53,214.47,7.48]
[1758733868015,2.14346375,214.57,214.47,7.48]
[1758733869220,2.14346375,214.57,214.51,4.1933]
[1758733869516,2.14346375,214.57,214.51,11.6733]
[1758733870022,2.14346375,214.57,214.51,7.48]
[1758733870814,118.0921,214.59,214.46,7.48]
[1758733870815,7.74,214.53,214.46,7.48]
[1758733871117,7.74,214.5,214.46,7.48]
[1758733872219,7.74,214.47,214.38,7.48]
[1758733872618,2.14346375,214.46,214.38,7.48]
[1758733872821,2.14346375,214.46,214.35,7.3624911]
[1758733872822,9.88346375,214.46,214.42,7.48]
[1758733873217,7.74,214.45,214.42,7.48]
[1758733873816,2.14346375,214.46,214.42,7.48]
[1758733874520,2.14346375,214.46,214.42,4.1951]
[1758733874713,2.14346375,214.46,214.4,65.266]
[1758733874913,106.16,214.53,214.41,7.48]
[1758733875223,2.14346375,214.5,214.41,7.48]
[1758733875814,9.88346375,214.5,214.45,11.6745]
[1758733876119,9.88346375,214.5,214.46,7.48]
[1758733876516,7.74,214.49,214.46,7.48]
[1758733876717,7.74,214.49,214.41,7.48]
[1758733877519,7.74,214.49,214.45,4.1945]
[1758733877720,9.88346375,214.47,214.39,7.48]
[1758733878324,9.88346375,214.47,214.42,4.1951]
[1758733878524,9.88346375,214.47,214.43,7.48]
[1758733878830,2.14346375,214.47,214.38,7.48]
[1758733879121,7.74,214.46,214.4,4.1956]
[1758733879325,2.14346375,214.44,214.38,7.48]
[1758733879525,9.88346375,214.44,214.38,7.48]
[1758733879729,9.88346375,214.44,214.38,11.6759]
[1758733880118,9.88346375,214.44,214.38,7.48]
[1758733880715,9.88346375,214.44,214.38,11.6758]
[1758733881420,9.88346375,214.44,214.36,4.1964]
[1758733881624,7.74,214.4,214.34,11.13963547]
[1758733883222,7.74,214.4,214.34,15.33643547]
[1758733883824,7.74,214.4,214.34,14.59682]
[1758733884228,7.74,214.4,214.35,4.1964]
[1758733884424,7.74,214.4,214.35,11.3964]
[1758733884623,7.36,214.45,214.35,65.2812]
[1758733884819,7.36,214.45,214.41,11.3954]
[1758733885024,9.50346375,214.45,214.41,11.3954]
[1758733885226,2.14346375,214.45,214.42,7.2]
[1758733885427,2.14346375,214.45,214.42,11.3951]
[1758733888533,10.70946301,214.49,214.42,11.3951]
[1758733890328,7.36,214.49,214.42,11.3951]
[1758733890535,10.70946301,214.49,214.42,11.3951]
[1758733891128,10.70946301,214.49,214.43,4.1949]
[1758733891529,10.70946301,214.52,214.42,7.2]
[1758733891733,75.93976301,214.52,214.35,7.2]
[1758733892029,3.34946301,214.44,214.35,7.2]
[1758733892230,7.36,214.43,214.35,7.2]
[1758733892626,3.34946301,214.48,214.4,4.1956]
[1758733892835,7.36,214.47,214.4,4.1956]
[1758733893436,7.36,214.47,214.41,4.1953]
[1758733894030,49.22946301,214.48,214.42,4.195]
[1758733894433,3.34946301,214.48,214.42,4.195]
[1758733895036,3.34946301,214.48,214.43,4.1949]
[1758733895240,10.70946301,214.51,214.44,7.2]
[1758733895632,10.70946301,214.51,214.45,4.1945]
[1758733895833,10.70946301,214.51,214.44,7.2]
[1758733896039,117.90946301,214.54,214.44,72.4534]
[1758733897333,117.90946301,214.54,214.45,65.2504]
[1758733897540,117.90946301,214.54,214.46,7.2]
[1758733897930,117.90946301,214.54,214.49,4.1937]
[1758733898131,7.36,214.53,214.46,7.2]
[1758733898532,7.36,214.53,214.47,4.1942]
[1758733898738,7.36,214.53,214.46,7.2]
[1758733900232,7.36,214.53,214.48,4.1939]
[1758733900434,125.26946301,214.54,214.48,4.1939]
[1758733900938,10.70946301,214.54,214.48,4.1939]
[1758733902945,7.36,214.52,214.48,11.3939]
[1758733903241,3.27233347,214.51,214.48,11.3939]
[1758733903548,7.36,214.57,214.51,4.1934]
[1758733903746,10.63201025,214.56,214.51,11.3934]
[1758733904045,7.36,214.54,214.51,11.3934]
[1758733904245,3.27201025,214.53,214.51,11.3934]
[1758733904446,7.36,214.54,214.51,11.3934]
[1758733904646,3.2712572,214.53,214.51,11.3934]
[1758733904844,7.36,214.54,214.51,11.3934]
[1758733905039,3.2712572,214.53,214.51,4.1934]
[1758733905245,7.36,214.53,214.49,11.3938]
[1758733905545,7.36,214.51,214.49,4.1938]
[1758733905751,7.36,214.54,214.47,4.1942]
[1758733906050,3.2713268,214.53,214.47,4.1942]
[1758733906351,7.36,214.51,214.48,11.3939]
[1758733906546,7.36,214.55,214.48,11.3939]
[1758733906758,3.27115781,214.54,214.48,7.2]
[1758733906954,10.63115781,214.53,214.5,4.1935]
[1758733907154,3.27115781,214.52,214.5,4.1935]
[1758733907354,7.36,214.53,214.5,4.1935]
[1758733907554,3.27085003,214.52,214.5,4.1935]
[1758733907857,7.36,214.53,214.5,4.1935]
[1758733908060,3.27085128,214.52,214.5,4.1935]
[1758733908259,7.36,214.53,214.5,4.1935]
[1758733908461,3.2707338,214.52,214.5,4.1935]
[1758733908662,7.36,214.53,214.5,4.1935]
[1758733908854,3.2707338,214.52,214.5,4.1935]
[1758733909059,7.36,214.53,214.5,4.1935]
[1758733909257,3.2707338,214.52,214.5,4.1935]
[1758733909457,7.36,214.53,214.5,4.1935]
[1758733909657,3.27051176,214.52,214.5,4.1935]
[1758733909858,7.36,214.53,214.5,4.1935]
[1758733910158,3.27051176,214.52,214.47,4.1941]
[1758733910353,49.44,214.55,214.44,65.2535]
[1758733910354,7.36,214.51,214.45,7.2]
[1758733911260,7.36,214.51,214.48,4.1939]
[1758733911762,7.36,214.51,214.45,7.2]
[1758733914463,7.36,214.51,214.48,4.1939]
[1758733915265,7.36,214.51,214.5,4.1937]
[1758733918161,7.6,214.55,214.51,4.1934]
[1758733918365,7.6,214.53,214.51,4.1934]
[1758733918665,3.27034883,214.52,214.51,4.1934]
[1758733918867,10.87034883,214.52,214.51,4.1934]
[1758733920460,3.27034883,214.52,214.51,4.1934]
[1758733920665,3.27034883,214.52,214.51,11.9234]
[1758733921761,3.27034883,214.52,214.51,4.1934]
[1758733921966,7.66,214.56,214.46,65.247]
[1758733921967,3.34946301,214.58,214.53,4.1929]
[1758733922160,3.26864518,214.57,214.53,4.1929]
[1758733922362,3.26864518,214.56,214.53,4.1929]
[1758733922663,7.66,214.55,214.53,4.1929]
[1758733923265,7.66,214.58,214.56,4.1924]
[1758733923567,14.09011534,214.66,214.55,7.73]
[1758733923568,7.66,214.62,214.55,7.73]
[1758733923768,3.26707149,214.61,214.55,7.73]
[1758733923968,3.26707149,214.6,214.59,4.1918]
[1758733925869,3.26707149,214.6,214.56,11.9223]
[1758733926169,10.92707149,214.59,214.56,4.1923]
[1758733926368,7.66,214.59,214.56,11.9223]
[1758733927067,4.1915,214.62,214.56,4.1923]
[1758733927364,7.66,214.6,214.56,4.1923]
[1758733927569,10.92489207,214.59,214.56,4.1923]
[1758733927768,7.66,214.59,214.56,4.1923]
[1758733929069,3.26622565,214.58,214.56,4.1923]
[1758733929371,7.66,214.59,214.56,4.1923]
[1758733929563,3.26714718,214.58,214.56,4.1923]
[1758733929769,7.66,214.59,214.56,4.1923]
[1758733929969,3.26714834,214.58,214.56,4.1923]
[1758733930270,7.66,214.59,214.56,4.1923]
[1758733930467,3.26733983,214.58,214.56,4.1923]
[1758733930663,7.66,214.59,214.56,4.1923]
[1758733930871,3.26733983,214.58,214.56,4.1923]
[1758733931067,7.66,214.59,214.56,4.1923]
[1758733931261,3.26733983,214.58,214.56,4.1923]
[1758733931467,3.26733983,214.57,214.56,4.1923]
[1758733931768,3.26733983,214.58,214.56,4.1923]
[1758733931973,7.66,214.62,214.59,4.1919]
[1758733932271,3.26714837,214.61,214.59,4.1919]
[1758733932468,339.46,214.65,214.55,65.2201]
[1758733932679,7.66,214.68,214.6,65.2048]
[1758733932680,121.78,214.68,214.6,65.2048]
[1758733932972,7.66,214.68,214.6,72.9348]
[1758733933174,7.66,214.68,214.64,4.1909]
[1758733933365,7.66,214.68,214.6,7.73]
[1758733933571,101.02,214.68,214.6,7.73]
[1758733934075,101.02,214.68,214.61,4.1915]
[1758733934274,104.36946301,214.68,214.61,4.1915]
[1758733935668,101.02,214.68,214.62,4.1912]
[1758733935873,104.36946301,214.68,214.62,4.1912]
[1758733936770,7.66,214.66,214.6,11.9216]
[1758733936976,7.66,214.66,214.6,7.73]
[1758733937971,7.66,214.67,214.56,7.73]
[1758733938171,3.34946301,214.65,214.56,7.73]
[1758733938372,7.66,214.67,214.5,7.73]
[1758733938373,3.34946301,214.61,214.5,7.73]
[1758733938577,7.66,214.6,214.5,7.73]
[1758733938872,7.66,214.6,214.54,4.1927]
[1758733939171,7.66,214.6,214.53,7.73]
[1758733939562,7.66,214.6,214.55,4.1926]
[1758733939767,32.64946301,214.61,214.55,4.1926]
[1758733939976,32.64946301,214.61,214.53,7.73]
[1758733940877,7.66,214.6,214.49,7.73]
[1758733941072,29.18096301,214.61,214.49,7.73]
[1758733941073,7.66,214.56,214.49,7.73]
[1758733942274,7.66,214.56,214.51,4.1934]
[1758733942480,11.00946301,214.57,214.49,7.73]